DOCUMENT TYPE,ECFRS Ref,NOMINAL,Cost Centre,TYPE OF EXPENDITURE,DESCRIPTION,PROCESSING DATE,YEARCODE,PERIOD,VALUE,Analysis,Analysis Title,Cost Centre Desc,Department
PCAR,4612,4111,9103,Subsistence Allowances,FIELDHEAD HOTEL - ACCOM MTG,05/12/2017,2018,09,175.00 ,000400000000,Workshops Management (Dept),Operations,Workshops Management (Dept)
PCAR,4612,4110,9103,Travelling Expenses,TFL - TFL ROAD CHARGE WX54VTA,05/12/2017,2018,09,200.00 ,000400000000,Workshops Management (Dept),Operations,Workshops Management (Dept)
PCAR,4613,4110,9103,Travelling Expenses,C2C - RAIL FARE CONFERENCE,07/12/2017,2018,09,25.50 ,000100000000,Service Leadership Team,Operations,Service Leadership Team
PCAR,4614,4019,9201,Community Safety,CO-OP - CATERING FIREBREAK,12/12/2017,2018,09,15.05 ,000000000014,Firebreaks,Community Safety,Community Safety
PCAR,4614,4019,9201,Community Safety,TESCO - CATERING FIREBREAK,12/12/2017,2018,09,45.37 ,000000000014,Firebreaks,Community Safety,Community Safety
PCAR,4614,4019,9201,Community Safety,SAINSBURYS- CATERING FIREBREAK,12/12/2017,2018,09,99.04 ,000000000014,Firebreaks,Community Safety,Community Safety
PCAR,4614,4019,9201,Community Safety,CO-OP - CATERING FIREBREAK,12/12/2017,2018,09,80.02 ,000000000014,Firebreaks,Community Safety,Community Safety
PCAR,4614,4019,9201,Community Safety,TESCO - CATERING FIREBREAK,12/12/2017,2018,09,57.84 ,000000000014,Firebreaks,Community Safety,Community Safety
PCAR,4614,4019,9201,Community Safety,TESCO - CATERING FIREBREAK,12/12/2017,2018,09,64.85 ,000000000014,Firebreaks,Community Safety,Community Safety
PCAR,4614,4019,9201,Community Safety,TESCO - CATERING FIREBREAK,12/12/2017,2018,09,59.37 ,000000000014,Firebreaks,Community Safety,Community Safety
PCAR,4614,4019,9201,Community Safety,MORRISONS- CATERING FIREBREAK,12/12/2017,2018,09,10.59 ,000000000014,Firebreaks,Community Safety,Community Safety
PCAR,4615,4019,9201,Community Safety,SAINSBURYS- CATERING FIREBREAK,12/12/2017,2018,09,78.13 ,000000000014,Firebreaks,Community Safety,Community Safety
PCAR,4615,4019,9201,Community Safety,TESCO - CATERING FIREBREAK,12/12/2017,2018,09,42.37 ,000000000014,Firebreaks,Community Safety,Community Safety
PCAR,4615,4019,9201,Community Safety,TESCO - CATERING FIREBREAK,12/12/2017,2018,09,31.72 ,000000000014,Firebreaks,Community Safety,Community Safety
PCAR,4615,4019,9201,Community Safety,WAITROSE - CATERING FIREBREAK,12/12/2017,2018,09,7.82 ,000000000014,Firebreaks,Community Safety,Community Safety
PCAR,4615,4019,9201,Community Safety,TESCO - CATERING FIREBREAK,12/12/2017,2018,09,21.87 ,000000000014,Firebreaks,Community Safety,Community Safety
PCAR,4616,4110,9103,Travelling Expenses,GREATER ANGLIA - RAIL SEMINAR,12/12/2017,2018,09,63.60 ,000103000000,Operations (Dept),Operations,Operations (Dept)
PCAR,4617,6899,9304,Miscellaneous Expenses,HOUSE OF DELIGHT- ENTERTAINING,12/12/2017,2018,09,416.67 ,000304000000,Training (Dept),Training,Training (Dept)
PCAR,4617,6899,9304,Miscellaneous Expenses,THE REAL GREEK - ENTERTAINING,12/12/2017,2018,09,399.00 ,000304000000,Training (Dept),Training,Training (Dept)
PCAR,4617,6899,9304,Miscellaneous Expenses,LANTERN HOUSE - ENTERTAINING,12/12/2017,2018,09,466.67 ,000304000000,Training (Dept),Training,Training (Dept)
PCAR,4617,6899,9304,Miscellaneous Expenses,THE SHARD - ENTERTAINING,12/12/2017,2018,09,19.96 ,000304000000,Training (Dept),Training,Training (Dept)
PCAR,4617,6899,9304,Miscellaneous Expenses,THE SHARD - ENTERTAINING,12/12/2017,2018,09,19.96 ,000304000000,Training (Dept),Training,Training (Dept)
PCAR,4617,6899,9304,Miscellaneous Expenses,CHA CHA OXON - ENTERTAINING,12/12/2017,2018,09,333.33 ,000304000000,Training (Dept),Training,Training (Dept)
PCAR,4617,6899,9304,Miscellaneous Expenses,GRAND IMPERIAL - ENTERTAINING,12/12/2017,2018,09,158.33 ,000304000000,Training (Dept),Training,Training (Dept)
PCAR,4617,6899,9304,Miscellaneous Expenses,SEARCYS@BLENHIEM - ENTERTAININ,12/12/2017,2018,09,120.50 ,000304000000,Training (Dept),Training,Training (Dept)
PCAR,4617,6899,9304,Miscellaneous Expenses,BLENHEIM PALACE - ENTERTAINING,12/12/2017,2018,09,150.57 ,000304000000,Training (Dept),Training,Training (Dept)
PCAR,4617,6899,9304,Miscellaneous Expenses,GRAND IMPERIAL - ENTERTAINING,12/12/2017,2018,09,456.20 ,000304000000,Training (Dept),Training,Training (Dept)
PCAR,4617,6899,9304,Miscellaneous Expenses,STARBUCKS - ENTERTAINING,12/12/2017,2018,09,3.33 ,000304000000,Training (Dept),Training,Training (Dept)
PCAR,4617,6899,9304,Miscellaneous Expenses,PRET A MANGER - ENTERTAINING,12/12/2017,2018,09,94.54 ,000304000000,Training (Dept),Training,Training (Dept)
PCAR,4617,6899,9304,Miscellaneous Expenses,LUL TICKET MACHINE - ENTERTAIN,12/12/2017,2018,09,153.90 ,000304000000,Training (Dept),Training,Training (Dept)
PCAR,4617,6899,9304,Miscellaneous Expenses,MILLER & CARTER - ENTERTAINING,12/12/2017,2018,09,388.12 ,000304000000,Training (Dept),Training,Training (Dept)
PCAR,4617,6899,9304,Miscellaneous Expenses,BANQUET - ENTERTAINING,12/12/2017,2018,09,"1,042.75 ",000304000000,Training (Dept),Training,Training (Dept)
PCAR,4617,6899,9304,Miscellaneous Expenses,LANTERN HOUSE - ENTERTAINING,12/12/2017,2018,09,416.67 ,000304000000,Training (Dept),Training,Training (Dept)
PCAR,4617,6899,9304,Miscellaneous Expenses,THE BAMBOO HOUSE- ENTERTAINING,12/12/2017,2018,09,162.50 ,000304000000,Training (Dept),Training,Training (Dept)
PCAR,4617,6899,9304,Miscellaneous Expenses,THE BAMBOO HOUSE- ENTERTAINING,12/12/2017,2018,09,280.00 ,000304000000,Training (Dept),Training,Training (Dept)
PCAR,4617,6899,9304,Miscellaneous Expenses,EAGLE - ENTERTAINING,12/12/2017,2018,09,186.04 ,000304000000,Training (Dept),Training,Training (Dept)
PCAR,4617,6899,9304,Miscellaneous Expenses,CHEMSFORD GOV - ENTERTAINING,12/12/2017,2018,09,2.08 ,000304000000,Training (Dept),Training,Training (Dept)
PCAR,4618,4111,9304,Subsistence Allowances,PREMIER INN - ACCOM SDI COURSE,12/12/2017,2018,09,104.16 ,000000000813,Training - L&D Panel,Training,Training
PCAR,4618,4112,9304,Conferences & Seminars,PMG LTD - CONFERENCE,12/12/2017,2018,09,740.00 ,000304000000,Training (Dept),Training,Training (Dept)
PCAR,4618,4111,9304,Subsistence Allowances,CAFE ON THE WATER- FOOD COURSE,12/12/2017,2018,09,85.00 ,000000000808,Training - Water,Training,Training
PCAR,4618,4111,9304,Subsistence Allowances,CAFE ON THE WATER- FOOD COURSE,12/12/2017,2018,09,70.00 ,000000000808,Training - Water,Training,Training
PCAR,4619,4112,9304,Conferences & Seminars,ETC VENUES - DELEGATE PACKAGE,12/12/2017,2018,09,597.20 ,000100000000,Service Leadership Team,Training,Service Leadership Team
PCAR,4620,3201,9400,Petrol and Diesel,MORRISONS - FUEL COURSE,12/12/2017,2018,09,18.98 ,000103000000,Operations (Dept),Workshops Management,Operations (Dept)
PCAR,4620,4009,9208,Operational Support Costs,MARWOOD GROUP - BARRIERS,12/12/2017,2018,09,550.00 ,000000000191,UKRO - 2015/16/17,Emergency Planning & Civil Protection,Emergency Planning & Civil Protection
PCAR,4620,4009,9208,Operational Support Costs,McDONALDS - FOOD HOLMATRO DAY,12/12/2017,2018,09,13.22 ,000000000191,UKRO - 2015/16/17,Emergency Planning & Civil Protection,Emergency Planning & Civil Protection
PCAR,4620,4009,9208,Operational Support Costs,McDONALDS - FOOD HOLMATRO DAY,12/12/2017,2018,09,3.33 ,000000000191,UKRO - 2015/16/17,Emergency Planning & Civil Protection,Emergency Planning & Civil Protection
PCAR,4620,4009,9208,Operational Support Costs,McDONALDS - FOOD HOLMATRO DAY,12/12/2017,2018,09,2.07 ,000000000191,UKRO - 2015/16/17,Emergency Planning & Civil Protection,Emergency Planning & Civil Protection
PCAR,4620,4111,9304,Subsistence Allowances,PREMIER INN - ACCOM EXERCISE,12/12/2017,2018,09,62.07 ,000103000000,Operations (Dept),Training,Operations (Dept)
PCAR,4621,4019,9201,Community Safety,TESCO - CATERING FIREBREAK,12/12/2017,2018,09,46.02 ,000000000014,Firebreaks,Community Safety,Community Safety
PCAR,4621,4019,9201,Community Safety,INREACH GARMIN- TRACKER USEAGE,12/12/2017,2018,09,21.24 ,000000000019,D of E,Community Safety,Community Safety
PCAR,4621,4019,9201,Community Safety,POPPY APPEAL - POPPY WREATHS,12/12/2017,2018,09,96.00 ,000000000003,Youth Schemes,Community Safety,Community Safety
PCAR,4621,4019,9201,Community Safety,W M MORRISONS - CATERING,12/12/2017,2018,09,16.73 ,000000000003,Youth Schemes,Community Safety,Community Safety
PCAR,4622,4111,9304,Subsistence Allowances,M&S - LUNCH COURSE AT DDFRS,12/12/2017,2018,09,8.00 ,000100000000,Service Leadership Team,Training,Service Leadership Team
PCAR,4622,4111,9304,Subsistence Allowances,CLOSEGATE HOTEL - ROOM SERVICE,12/12/2017,2018,09,32.50 ,000100000000,Service Leadership Team,Training,Service Leadership Team
PCAR,4623,4110,9103,Travelling Expenses,LONDON&SOUTH EAS - RAIL MTG,12/12/2017,2018,09,28.70 ,000100000000,Service Leadership Team,Operations,Service Leadership Team
PCAR,4624,4111,9103,Subsistence Allowances,PREMIER INN - ACCOM MEETING,12/12/2017,2018,09,103.32 ,000100000000,Service Leadership Team,Operations,Service Leadership Team
PCAR,4625,2040,9505,IT Maintenance and Contracts,PAYPAL - EGRESS SOFTWARE,12/12/2017,2018,09,"1,850.00 ",000505000071,ICT Consumables Software,ICT,ICT Consumables Software
PCAR,4625,2040,9505,IT Maintenance and Contracts,PAYPAL - EGRESS SOFTWARE,12/12/2017,2018,09,"-1,850.00 ",000505000071,ICT Consumables Software,ICT,ICT Consumables Software
PCAR,4625,B217,9505,Payments in Advance,Egress S/Ware Nov17-Oct18,12/12/2017,2018,09,"1,850.00 ",000505000071,ICT Consumables Software,ICT,ICT Consumables Software
PCAR,4625,4005,9505,IT Consumables,PAYPAL - MOUSE ADAPTER CABLE,12/12/2017,2018,09,4.98 ,000505000070,ICT - Consumables Hardware,ICT,ICT - Consumables Hardware
PCAR,4626,4001,9210,Stationery,WH SMITH - DIARY FOR MANAGER,13/12/2017,2018,09,12.04 ,000210000000,Emergency Planning (Dept),Essex Civil Prot ECC,Emergency Planning (Dept)
PCAR,4626,4001,9210,Stationery,CARTRIDGE SAVE - INK CARTRIDGE,13/12/2017,2018,09,170.15 ,000210000000,Emergency Planning (Dept),Essex Civil Prot ECC,Emergency Planning (Dept)
PCAR,4626,4110,9210,Travelling Expenses,GREATER ANGLIA - RAIL MEETING,13/12/2017,2018,09,17.90 ,000210000000,Emergency Planning (Dept),Essex Civil Prot ECC,Emergency Planning (Dept)
PCAR,4627,4005,9505,IT Consumables,J2 EFAX - MONTHLY SUBSCRIPTION,13/12/2017,2018,09,7.50 ,000505000000,ICT (Dept),ICT,ICT (Dept)
PCAR,4629,4110,9103,Travelling Expenses,GREATER ANGLIA - RAIL BREIFING,13/12/2017,2018,09,45.60 ,000209000000,Corporate Risk & Business Continuity (Dept),Operations,Corporate Risk & Business Continuity (Dept)
PCAR,4629,4110,9103,Travelling Expenses,GREATER ANGLIA - RAIL MEETING,13/12/2017,2018,09,45.60 ,000209000000,Corporate Risk & Business Continuity (Dept),Operations,Corporate Risk & Business Continuity (Dept)
PCAR,4629,4111,9103,Subsistence Allowances,PREMIER INN - ACCOM WORKSHOP,13/12/2017,2018,09,34.16 ,000209000000,Corporate Risk & Business Continuity (Dept),Operations,Corporate Risk & Business Continuity (Dept)
PCAR,4629,4111,9103,Subsistence Allowances,UNION JACK CLUB- ROOM & BUFFET,13/12/2017,2018,09,522.50 ,000209000000,Corporate Risk & Business Continuity (Dept),Operations,Corporate Risk & Business Continuity (Dept)
PCAR,4630,4110,9103,Travelling Expenses,LONDON & SOUTH EAS - RAIL MTG,14/12/2017,2018,09,55.60 ,000100000000,Service Leadership Team,Operations,Service Leadership Team
PCAR,4631,4009,9208,Operational Support Costs,GREATER ANGLIA - RAIL WORKSHOP,14/12/2017,2018,09,50.80 ,000208000000,Resilience (Dept),Emergency Planning & Civil Protection,Resilience (Dept)
PCAR,4632,4130,9100,Hospitality & Entertaining,MARRIOTT - ACCOM ,14/12/2017,2018,09,115.00 ,000100000000,Service Leadership Team,Service Leadership Team,Service Leadership Team
PCAR,4633,4110,9103,Travelling Expenses,TRAINLINE - RAIL MTG,14/12/2017,2018,09,177.07 ,000100000000,Service Leadership Team,Operations,Service Leadership Team
PCAR,4633,2902,9100,Legal Expenses,QUANTRILLS - PROFESSIONAL FEES,14/12/2017,2018,09,350.00 ,000100000000,Service Leadership Team,Service Leadership Team,Service Leadership Team
PCAR,4633,4110,9103,Travelling Expenses,GREATER ANGLIA-RAIL FRIC BOARD,14/12/2017,2018,09,61.30 ,000100000000,Service Leadership Team,Operations,Service Leadership Team
PCAR,4634,3404,9420,Vehicle Spares,OPTIMATE UK - BATTERY CHARGER,14/12/2017,2018,09,89.14 ,000420000000,Workshops Engineering (Dept),Workshop Engineering,Workshops Engineering (Dept)
PCAR,4634,3404,9420,Vehicle Spares,ILECSYS LTD - SWITCH,14/12/2017,2018,09,42.07 ,000420000000,Workshops Engineering (Dept),Workshop Engineering,Workshops Engineering (Dept)
PCAR,4634,3404,9420,Vehicle Spares,OPTIMATE UK - EXTENSION LEAD,14/12/2017,2018,09,14.99 ,000420000000,Workshops Engineering (Dept),Workshop Engineering,Workshops Engineering (Dept)
PCAR,4635,0960,9504,Occupational Health,AMAZON - MINI CASSETTE TAPES,14/12/2017,2018,09,55.29 ,000504000000,Human Resources (Dept),Human Resources,Human Resources (Dept)
PCAR,4635,4111,9103,Subsistence Allowances,PREMIER INN - ACCOM MTG,14/12/2017,2018,09,68.32 ,000051000000,051 Brentwood,Operations,051 Brentwood
PCAR,4635,4111,9103,Subsistence Allowances,PREMIER INN - ACCOM MTG,14/12/2017,2018,09,146.65 ,000210000000,Emergency Planning (Dept),Operations,Emergency Planning (Dept)
PCAR,4635,4111,9103,Subsistence Allowances,PREMIER INN - ACCOM MTG,14/12/2017,2018,09,94.16 ,000103000000,Operations (Dept),Operations,Operations (Dept)
PCAR,4635,6822,9104,Ceremonies,AURA DESIGN - FLOWERS,14/12/2017,2018,09,150.00 ,000104000000,Communications & Media (Dept),Corporate Comms,Communications & Media (Dept)
PCAR,4635,4111,9103,Subsistence Allowances,HOTEL INDIGO- ACCOM CONFERENCE,14/12/2017,2018,09,183.33 ,000103000000,Operations (Dept),Operations,Operations (Dept)
PCAR,4635,6822,9104,Ceremonies,MARCHING BAND SHOP - UNIFORM,14/12/2017,2018,09,75.15 ,000104000000,Communications & Media (Dept),Corporate Comms,Communications & Media (Dept)
PCAR,4635,4111,9103,Subsistence Allowances,HOTEL INDIGO- ACCOM CONFERENCE,14/12/2017,2018,09,183.33 ,000103000000,Operations (Dept),Operations,Operations (Dept)
PCAR,4635,4111,9103,Subsistence Allowances,TRAVELODGE - ACCOM MEETING,14/12/2017,2018,09,53.54 ,000402000000,Finance (Dept),Operations,Finance (Dept)
PCAR,4635,2030,9053,Operational Equipment Support,AMAZON - BATTERY FOR DRONE,14/12/2017,2018,09,99.98 ,000014000000,014 USAR,Operations - USAR,014 USAR
PCAR,4635,4019,9201,Community Safety,AMAZON - PILOT CASE ,14/12/2017,2018,09,36.66 ,000201000000,Community Safety (Dept),Community Safety,Community Safety (Dept)
PCAR,4635,2024,9404,Cleaning Equipment,AMAZON - VACUUM CLEANER,14/12/2017,2018,09,75.05 ,000404000000,Purchasing & Supply (Dept),Purchasing & Supply,Purchasing & Supply (Dept)
PCAR,4635,4111,9103,Subsistence Allowances,PREMIER INN - ACCOM ,14/12/2017,2018,09,95.82 ,000201000000,Community Safety (Dept),Operations,Community Safety (Dept)
PCAR,4635,4015,8200,Community Commanders Funds,TV LICENSING - TV LICENCE E32,14/12/2017,2018,09,147.00 ,000032000000,032 South Woodham Ferrers,Station Group Management,032 South Woodham Ferrers
PCAR,4635,4015,8200,Community Commanders Funds,TV LICENING - TV LICENCE E11,14/12/2017,2018,09,147.00 ,000011000000,011 Dovercourt,Station Group Management,011 Dovercourt
PCAR,4635,4015,8200,Community Commanders Funds,TV LICENING - TV LICENCE E33,14/12/2017,2018,09,147.00 ,000033000000,033 Great Baddow,Station Group Management,033 Great Baddow
PCAR,4635,4019,9201,Community Safety,AMAZON - 2 X PILOT CASES,14/12/2017,2018,09,73.32 ,000000000003,Youth Schemes,Community Safety,Community Safety
PCAR,4635,4111,9103,Subsistence Allowances,PREMIER INN - REFUND ACCOM,14/12/2017,2018,09,-69.16 ,000000000000,Not Analysed,Operations,Operations
PCAR,4636,2040,9505,IT Maintenance and Contracts,RAPID WEB SERVICES - SOFTWARE,15/12/2017,2018,09,56.94 ,000505000071,ICT Consumables Software,ICT,ICT Consumables Software
PCAR,4636,2040,9505,IT Maintenance and Contracts,RAPID WEB SERVICES - SOFTWARE,15/12/2017,2018,09,69.15 ,000505000071,ICT Consumables Software,ICT,ICT Consumables Software
PCAR,4637,2085,9301,Breathing Apparatus,AMAZON - HEAVY DUTY SCALES,15/12/2017,2018,09,47.50 ,000301000000,Technical Services (Dept),Technical Services,Technical Services (Dept)
PCAR,4638,4111,9103,Subsistence Allowances,THE CAPITAL - EVE MEALS,15/12/2017,2018,09,35.67 ,000000000027,IFE Registration Fee,Operations,Operations
PCAR,4638,4111,9103,Subsistence Allowances,TABLE TABLE - EVENING MEAL,15/12/2017,2018,09,12.49 ,000000000027,IFE Registration Fee,Operations,Operations
PCAR,4638,4110,9103,Travelling Expenses,M6 TOLL - TOLL FEE CHARGE,15/12/2017,2018,09,4.92 ,000000000029,Fire Prevention miscellaneous,Operations,Operations
PCAR,4638,4111,9103,Subsistence Allowances,PREMIER INN - ACCOM MEETING,15/12/2017,2018,09,69.99 ,000000000031,EERSP,Operations,Operations
PCAR,4638,4110,9103,Travelling Expenses,M6 TOLL - TOLL FEE CHARGE,15/12/2017,2018,09,4.92 ,000000000029,Fire Prevention miscellaneous,Operations,Operations
PCAR,4638,4110,9103,Travelling Expenses,EASY JET - FLIGHT GLASGOW,15/12/2017,2018,09,55.51 ,000000000027,IFE Registration Fee,Operations,Operations
PCAR,4639,0962,9504,Employee Subscriptions,ROYAL YACHTING ASS- MEMBERSHIP,18/12/2017,2018,09,104.00 ,000304000000,Training (Dept),Human Resources,Training (Dept)
PCAR,4639,0962,9504,Employee Subscriptions,ROYAL YACHTING ASS- MEMBERSHIP,18/12/2017,2018,09,104.00 ,000304000000,Training (Dept),Human Resources,Training (Dept)
PCAR,4639,0962,9504,Employee Subscriptions,ROYAL YACHTING ASS- MEMBERSHIP,18/12/2017,2018,09,104.00 ,000304000000,Training (Dept),Human Resources,Training (Dept)
PCAR,4640,4110,9103,Travelling Expenses,GREATER ANGLIA - RAIL MEETING,18/12/2017,2018,09,13.40 ,000100000000,Service Leadership Team,Operations,Service Leadership Team
PCAR,4640,4110,9103,Travelling Expenses,CHELMSFORD COUNCIL - PARKING,18/12/2017,2018,09,2.50 ,000100000000,Service Leadership Team,Operations,Service Leadership Team
PCAR,4640,4110,9103,Travelling Expenses,GREATER ANGLIA - RAIL SEMINAR,18/12/2017,2018,09,31.90 ,000100000000,Service Leadership Team,Operations,Service Leadership Team
PCAR,4641,4008,9104,Media Expenses,123RF - 12 MONTH SUBSCRIPTION,18/12/2017,2018,09,439.00 ,000104000000,Communications & Media (Dept),Corporate Comms,Communications & Media (Dept)
PCAR,4641,4008,9104,Media Expenses,ORSETT HALL - CATERING LSA,18/12/2017,2018,09,82.92 ,000104000000,Communications & Media (Dept),Corporate Comms,Communications & Media (Dept)
PCAR,4641,4008,9104,Media Expenses,ZENFOLIO - ONLINE PHOTO ,18/12/2017,2018,09,25.00 ,000104000000,Communications & Media (Dept),Corporate Comms,Communications & Media (Dept)
PCAR,4641,4002,9300,Printing - Brochures/Flysheets/Service info,FACEBOOK - ON CALL ADVERT,18/12/2017,2018,09,106.15 ,000000814000,2020 - On-call conversions,Project 2020,Project 2020
PCAR,4641,4008,9104,Media Expenses,FACEBOOK - JOB ADVERTISING,18/12/2017,2018,09,5.75 ,000104000000,Communications & Media (Dept),Corporate Comms,Communications & Media (Dept)
PCAR,4641,4008,9104,Media Expenses,PAYPAL RED STAR - SANTA HATS ,18/12/2017,2018,09,13.99 ,000104000000,Communications & Media (Dept),Corporate Comms,Communications & Media (Dept)
PCAR,4641,4008,9104,Media Expenses,PAYPAL - USB STICKS,18/12/2017,2018,09,41.85 ,000104000000,Communications & Media (Dept),Corporate Comms,Communications & Media (Dept)
PCAR,4642,4110,9103,Travelling Expenses,NCP - PARKING BAPCO,18/12/2017,2018,09,14.80 ,000102000000,Control (Dept),Operations,Control (Dept)
PCAR,4642,4110,9103,Travelling Expenses,GREATER ANGLIA - RAIL BAPCO,18/12/2017,2018,09,123.42 ,000102000000,Control (Dept),Operations,Control (Dept)
PCAR,4642,4111,9103,Subsistence Allowances,PREMIER INN - ACCOM BAPCO,18/12/2017,2018,09,184.97 ,000102000000,Control (Dept),Operations,Control (Dept)
PCAR,4642,4110,9103,Travelling Expenses,STANSTEDAIRPORT-  PARKING ,18/12/2017,2018,09,41.86 ,000102000000,Control (Dept),Operations,Control (Dept)
PCAR,4642,4111,9103,Subsistence Allowances,PREMIER INN - ACCOM NFCC-MOG,18/12/2017,2018,09,80.82 ,000102000000,Control (Dept),Operations,Control (Dept)
PCAR,4642,4111,9103,Subsistence Allowances,COSMO - DINNER NFCC-MOG,18/12/2017,2018,09,14.98 ,000102000000,Control (Dept),Operations,Control (Dept)
PCAR,4642,4110,9103,Travelling Expenses,EDINBURGH TRAMS - TRAM TICKET,18/12/2017,2018,09,8.50 ,000102000000,Control (Dept),Operations,Control (Dept)
PCAR,4642,4111,9103,Subsistence Allowances,SIR WALTER SCOTT - LUNCH,18/12/2017,2018,09,3.96 ,000102000000,Control (Dept),Operations,Control (Dept)
PCAR,4642,4111,9103,Subsistence Allowances,SIR WALTER SCOTT - LUNCH,18/12/2017,2018,09,8.99 ,000102000000,Control (Dept),Operations,Control (Dept)
PCAR,4643,0702,9304,External Training - L&D Panel,PERSONAL STRENGTHS - WORKSHOP,21/12/2017,2018,09,"1,843.20 ",000000000813,Training - L&D Panel,Training,Training
PCAR,4643,2030,9301,Operational Equipment Support,SPETIMUS SPARES-VACUUM CLEANER,21/12/2017,2018,09,17.66 ,000055000000,055 Orsett,Technical Services,055 Orsett
PCAR,4643,2030,9053,Operational Equipment Support,AMAZON - INSULATED CONTAINER,21/12/2017,2018,09,21.47 ,000014000000,014 USAR,Operations - USAR,014 USAR
PCAR,4643,4111,9103,Subsistence Allowances,PREMIER INN - ACCOM ,21/12/2017,2018,09,64.99 ,000103000000,Operations (Dept),Operations,Operations (Dept)
PCAR,4643,4111,9103,Subsistence Allowances,PREMIER INN - ACCOM ,21/12/2017,2018,09,67.49 ,000103000000,Operations (Dept),Operations,Operations (Dept)
PCAR,4643,4111,9103,Subsistence Allowances,PREMIER INN - ACCOM REFUND,21/12/2017,2018,09,-13.33 ,000103000000,Operations (Dept),Operations,Operations (Dept)
PCAR,4643,2030,9053,Operational Equipment Support,SCAFFTAG- SCAFFOLDING REGISTER,21/12/2017,2018,09,33.96 ,000014000000,014 USAR,Operations - USAR,014 USAR
PCAR,4643,4111,9103,Subsistence Allowances,JURYS INN-ACCOM SCANIA TRAININ,21/12/2017,2018,09,75.00 ,205000000000,Lexden Workshops - B112,Operations,Operations
PCAR,4643,4111,9103,Subsistence Allowances,JURYS INN-ACCOM SCANIA TRAININ,21/12/2017,2018,09,75.00 ,205000000000,Lexden Workshops - B112,Operations,Operations
PCAR,4643,4111,9103,Subsistence Allowances,JURYS INN-ACCOM SCANIA TRAININ,21/12/2017,2018,09,75.00 ,205000000000,Lexden Workshops - B112,Operations,Operations
PCAR,4643,4111,9103,Subsistence Allowances,JURYS INN-ACCOM SCANIA TRAININ,21/12/2017,2018,09,75.00 ,205000000000,Lexden Workshops - B112,Operations,Operations
PCAR,4643,4111,9103,Subsistence Allowances,JURYS INN-ACCOM SCANIA TRAININ,21/12/2017,2018,09,75.00 ,205000000000,Lexden Workshops - B112,Operations,Operations
PCAR,4643,4111,9103,Subsistence Allowances,JURYS INN-ACCOM SCANIA TRAININ,21/12/2017,2018,09,75.00 ,205000000000,Lexden Workshops - B112,Operations,Operations
PCAR,4643,4111,9103,Subsistence Allowances,JURYS INN-ACCOM SCANIA TRAININ,21/12/2017,2018,09,75.00 ,205000000000,Lexden Workshops - B112,Operations,Operations
PCAR,4644,4019,9201,Community Safety,PAVILION PUBLISHING - TICKETS,21/12/2017,2018,09,460.00 ,000000000000,Not Analysed,Community Safety,Community Safety
PCAR,4645,3404,9420,Vehicle Spares,AVS STEPS LTD - DEFECT REPAIR,21/12/2017,2018,09,163.80 ,000420000000,Workshops Engineering (Dept),Workshop Engineering,Workshops Engineering (Dept)
PCAR,4646,2902,9100,Legal Expenses,WEST YORKSHIRE PENSION- ADVICE,22/12/2017,2018,09,261.09 ,000504000000,Human Resources (Dept),Service Leadership Team,Human Resources (Dept)
PCAR,4646,0702,9304,External Training - L&D Panel,CIPD - MEMBERSHIP FOR COURSE,22/12/2017,2018,09,132.00 ,000504000000,Human Resources (Dept),Training,Human Resources (Dept)
PCAR,4646,4111,9103,Subsistence Allowances,PORTLANDS HOTEL - MEETING ROOM,22/12/2017,2018,09,163.75 ,000504000000,Human Resources (Dept),Operations,Human Resources (Dept)
PCAR,4646,4111,9103,Subsistence Allowances,TRAINLINE - RAIL MEETING,22/12/2017,2018,09,52.02 ,000504000000,Human Resources (Dept),Operations,Human Resources (Dept)
PCAR,4647,4019,9201,Community Safety,GLOBE SUPPLIES - POWER PACK,22/12/2017,2018,09,87.45 ,000000000001,Museum,Community Safety,Community Safety
PCAR,4647,4019,9201,Community Safety,B&Q - POP RIVERTING SYSTEM,22/12/2017,2018,09,23.32 ,000000000001,Museum,Community Safety,Community Safety
PCAR,4648,4111,9103,Subsistence Allowances,PREMIER INN - ACCOM MEETING,22/12/2017,2018,09,66.66 ,000400000000,Workshops Management (Dept),Operations,Workshops Management (Dept)
PCAR,4649,4111,9304,Subsistence Allowances,McDONALDS - BREAKFAST COURSE,22/12/2017,2018,09,11.80 ,000014000000,014 USAR,Training,014 USAR
PCAR,4649,4111,9103,Subsistence Allowances,McDONALDS - LUNCH MEETING,22/12/2017,2018,09,4.57 ,000014000000,014 USAR,Operations,014 USAR
PCAR,4649,4111,9304,Subsistence Allowances,McDONALDS - LUNCH EXERCISE,22/12/2017,2018,09,2.73 ,000014000000,014 USAR,Training,014 USAR
PCAR,4650,4019,9201,Community Safety,ROYAL MAIL POSTAGE,28/12/2017,2018,09,50.00 ,000000000011,SDP's,Community Safety,Community Safety
PCAR,4650,4019,9201,Community Safety,ROYAL MAIL POSTAGE,28/12/2017,2018,09,50.00 ,000000000011,SDP's,Community Safety,Community Safety
PCAR,4650,4019,9201,Community Safety,OVEN CLEANING X8,28/12/2017,2018,09,560.00 ,000000000125,Oven Cleaning,Community Safety,Community Safety
PCAR,4651,2030,9053,Operational Equipment Support,SAFETY HELMET,28/12/2017,2018,09,101.00 ,000014000000,014 USAR,Operations - USAR,014 USAR
PCAR,4652,4112,9304,Conferences & Seminars,CONFERENCE,28/12/2017,2018,09,390.00 ,000000000000,Not Analysed,Training,Training
PCAR,4652,4111,9304,Subsistence Allowances,ACCOM,28/12/2017,2018,09,522.01 ,000000000000,Not Analysed,Training,Training
PCAR,4652,4111,9304,Subsistence Allowances,ACCOM,28/12/2017,2018,09,706.96 ,000000000000,Not Analysed,Training,Training
PCAR,4653,4110,9103,Travelling Expenses,CAR PARK,28/12/2017,2018,09,15.00 ,000303000000,Health & Safety (Dept),Operations,Health & Safety (Dept)
PCAR,4653,4110,9103,Travelling Expenses,RAIL,28/12/2017,2018,09,29.40 ,000303000000,Health & Safety (Dept),Operations,Health & Safety (Dept)
PCAR,4654,4001,9404,Stationery,STATIONERY,28/12/2017,2018,09,48.93 ,000014000000,014 USAR,Purchasing & Supply,014 USAR
PCAR,4654,4001,9404,Stationery,STATIONERY,28/12/2017,2018,09,45.78 ,000014000000,014 USAR,Purchasing & Supply,014 USAR
PCAR,4654,4001,9404,Stationery,STATIONERY,28/12/2017,2018,09,11.25 ,000014000000,014 USAR,Purchasing & Supply,014 USAR
